bitfinex/quotes_BTCUSD_20260125
["timestamp","ask_amount","ask_price","bid_price","bid_amount"]
[1769360815036,0.22243259,87998.0,87983.0,0.2250769]
[1769360815268,0.2110687,87998.0,87983.0,0.2250769]
[1769360815466,0.01136363,88000.0,87983.0,1.27970443]
[1769360815691,0.01136363,88000.0,87984.0,0.2250769]
[1769360815692,0.1137524,87999.0,87984.0,0.2250769]
[1769360816095,0.01136376,87999.0,87984.0,0.2250769]
[1769360816517,0.12511923,87998.0,87984.0,0.2250769]
[1769360816763,0.01136454,87993.0,87977.0,0.17464]
[1769360817004,0.2110687,87992.0,87977.0,0.17464]
[1769360817471,0.2110687,87992.0,87980.0,0.29640689]
[1769360817788,0.2110687,87992.0,87978.0,0.2250769]
[1769360817789,0.22243336,87992.0,87978.0,0.2250769]
[1769360818109,0.01136479,87991.0,87978.0,0.22491844]
[1769360818327,0.22243414,87986.0,87965.0,1.05462753]
[1769360818526,0.2110687,87986.0,87968.0,1.05462753]
[1769360818728,0.2110687,87986.0,87969.0,1.05462753]
[1769360818913,0.2110687,87986.0,87971.0,0.2250769]
[1769360819813,0.2110687,87986.0,87965.0,0.04548]
[1769360819814,0.22907358,87985.0,87965.0,1.05462753]
[1769360820014,0.21674744,87984.0,87966.0,0.17464]
[1769360820316,0.22811314,87984.0,87966.0,0.17464]
[1769360820515,0.21674744,87972.0,87954.0,0.2250769]
[1769360820935,0.21674744,87972.0,87955.0,1.05538752]
[1769360821135,0.21674744,87972.0,87955.0,1.05462753]
[1769360821467,0.21674744,87972.0,87960.0,0.29640689]
[1769360821638,0.22907358,87975.0,87961.0,0.00073237]
[1769360822923,0.24044044,87975.0,87961.0,0.00073237]
[1769360823130,0.01136699,87974.0,87961.0,0.00073237]
[1769360823368,0.24044044,87975.0,87961.0,0.00073237]
[1769360823801,0.45718788,87975.0,87961.0,0.00073237]
[1769360824991,0.44582102,87975.0,87961.0,0.00073237]
[1769360825772,0.21674744,87985.0,87964.0,1.13442171]
[1769360825979,0.12494279,87984.0,87965.0,0.22816266]
[1769360826189,0.01136609,87981.0,87965.0,0.22816266]
[1769360826386,0.21674744,87982.0,87965.0,0.22816266]
[1769360826607,0.2281134,87982.0,87965.0,0.22816266]
[1769360826853,0.01136609,87981.0,87965.0,0.22816266]
[1769360827031,0.21674744,87982.0,87965.0,0.22816266]
[1769360827219,0.01136609,87981.0,87965.0,0.22816266]
[1769360827643,0.21674744,87981.0,87965.0,0.22816266]
[1769360827842,0.22811353,87981.0,87965.0,0.22816266]
[1769360828106,0.21674744,87981.0,87965.0,0.22816266]
[1769360828749,0.22811353,87981.0,87965.0,0.22816266]
[1769360829262,0.05658225,87981.0,87965.0,0.22816266]
[1769360829421,0.04521616,87981.0,87965.0,0.22816266]
[1769360830303,0.23218268,87986.0,87965.0,0.22816266]
[1769360830497,0.00592809,87987.0,87981.0,0.00999999]
[1769360830695,0.01136441,87994.0,87981.0,0.00999999]
[1769360830696,0.24354734,87992.0,87981.0,0.00999999]
[1769360830928,0.23218268,87991.0,87974.0,0.22816266]
[1769360831070,0.01136492,87990.0,87974.0,0.22816266]
[1769360831276,0.01136544,87986.0,87966.0,0.22816266]
[1769360831497,0.01136596,87982.0,87966.0,0.22816266]
[1769360831662,0.01136621,87980.0,87966.0,0.22816266]
[1769360831879,0.01136609,87981.0,87966.0,0.22816266]
[1769360832588,0.01136647,87978.0,87966.0,0.22816266]
[1769360832824,0.05682964,87983.0,87966.0,0.22816266]
[1769360833033,0.01136609,87981.0,87966.0,0.22816266]
[1769360833241,0.01136596,87982.0,87966.0,0.22816266]
[1769360833461,0.01136583,87983.0,87966.0,0.22816266]
[1769360833660,0.01136596,87982.0,87966.0,0.22816266]
[1769360833878,0.01136596,87982.0,87966.0,0.22458251]
[1769360834108,0.2656403,88006.0,87965.0,0.17464]
[1769360834109,0.01136686,87975.0,87965.0,0.17464]
[1769360834330,0.01136699,87974.0,87965.0,0.17464]
[1769360834532,0.01136725,87972.0,87965.0,0.17464]
[1769360834748,0.01136725,87972.0,87965.0,0.18940369]
[1769360834952,0.01136738,87971.0,87961.0,0.00073237]
[1769360835155,0.01136725,87972.0,87961.0,0.00073237]
[1769360835365,0.01136802,87966.0,87961.0,0.00073237]
[1769360835567,0.01136828,87964.0,87946.0,1.05343074]
[1769360835924,0.01136802,87966.0,87946.0,1.05343074]
[1769360835925,0.01136906,87958.0,87946.0,0.24359434]
[1769360836448,0.0113688,87960.0,87946.0,0.24359434]
[1769360836643,0.01136854,87962.0,87946.0,0.24359434]
[1769360837069,0.01136867,87961.0,87946.0,0.24359434]
[1769360837266,0.01136854,87962.0,87946.0,0.24359434]
[1769360837553,0.01136828,87964.0,87946.0,0.24359434]
[1769360837753,0.3873587,87965.0,87946.0,0.24359434]
[1769360837754,0.23952689,87959.0,87946.0,4.723e-05]
[1769360837959,0.23952689,87958.0,87946.0,4.723e-05]
[1769360838169,0.01136983,87952.0,87946.0,4.723e-05]
[1769360838374,0.23952689,87958.0,87945.0,0.0002599]
[1769360838375,0.01137035,87948.0,87945.0,0.0002599]
[1769360838575,0.011371,87943.0,87930.0,0.0002599]
[1769360838777,0.01137074,87945.0,87930.0,0.00014167]
[1769360838778,0.01137126,87941.0,87930.0,0.00014167]
[1769360839218,0.01137113,87942.0,87930.0,0.00014167]
[1769360839418,0.01137151,87939.0,87930.0,0.00014167]
[1769360839829,0.06822699,87942.0,87930.0,0.00014167]
[1769360839830,0.01137113,87942.0,87930.0,0.00014167]
[1769360840030,0.23952689,87945.0,87930.0,0.00014167]
[1769360840031,0.25089763,87945.0,87930.0,0.00014167]
[1769360840235,0.23952689,87945.0,87930.0,0.00014167]
[1769360840638,0.14783388,87949.0,87930.0,0.24368878]
[1769360840901,0.05238005,87948.0,87930.0,0.24368878]
[1769360841084,0.01136945,87955.0,87939.0,1.05343074]
[1769360841294,0.01136932,87956.0,87941.0,0.24354711]
[1769360841445,0.01136932,87956.0,87924.0,0.18605345]
[1769360841446,0.23952689,87950.0,87911.0,1.05343074]
[1769360841646,0.01137177,87937.0,87914.0,1.05343074]
[1769360841844,0.2508984,87939.0,87917.0,0.24354711]
[1769360842039,0.01137216,87934.0,87918.0,0.24354711]
[1769360842242,0.01137216,87934.0,87918.0,1.05343074]
[1769360842463,0.0113719,87936.0,87919.0,0.24354711]
[1769360842683,0.23952689,87939.0,87919.0,0.24354711]
[1769360842887,0.0113719,87936.0,87921.0,0.24354711]
[1769360843426,0.23952689,87939.0,87921.0,0.24354711]
[1769360843612,0.23952689,87939.0,87922.0,0.24354711]
[1769360844257,0.01137022,87949.0,87923.0,1.05343074]
[1769360844426,0.01137035,87948.0,87931.0,0.24354711]
[1769360844680,0.0113697,87953.0,87916.0,0.01137449]
[1769360844851,0.29640689,87960.0,87918.0,0.24354711]
[1769360844852,0.0113719,87936.0,87918.0,0.24354711]
[1769360845146,0.0113719,87936.0,87917.0,0.22016]
[1769360845147,0.2508984,87939.0,87922.0,0.24354711]
[1769360845368,0.05685918,87937.0,87922.0,0.24354711]
[1769360845593,0.01137216,87934.0,87922.0,0.24354711]
[1769360845796,0.01137177,87937.0,87922.0,0.24354711]
[1769360846214,0.0113719,87936.0,87922.0,0.24354711]
[1769360846414,0.01137177,87937.0,87922.0,0.24354711]
[1769360846715,0.2508984,87939.0,87922.0,0.24354711]
[1769360846914,0.01137177,87937.0,87922.0,0.24354711]
[1769360847116,0.0113719,87936.0,87922.0,0.24354711]
[1769360847341,0.01137203,87935.0,87922.0,0.24354711]
[1769360847545,0.01137177,87937.0,87922.0,0.24354711]
[1769360847747,0.01137177,87937.0,87911.0,9.646e-05]
[1769360847748,0.01137358,87923.0,87911.0,9.646e-05]
[1769360847986,0.01137449,87916.0,87911.0,9.646e-05]
[1769360848163,0.01137475,87914.0,87911.0,9.646e-05]
[1769360848567,0.01137488,87913.0,87910.0,0.17472]
[1769360848765,0.01137449,87916.0,87910.0,0.17472]
[1769360849476,0.01137436,87917.0,87910.0,0.17472]
[1769360849860,0.01137423,87918.0,87910.0,0.17472]
[1769360850269,0.01137436,87917.0,87910.0,0.17472]
[1769360850693,0.01137397,87920.0,87910.0,0.17472]
[1769360850920,0.01137397,87920.0,87889.0,0.01137798]
[1769360850921,0.23952689,87913.0,87897.0,0.17472]
[1769360851152,0.01137475,87914.0,87897.0,0.41873984]
[1769360851366,0.01137475,87914.0,87898.0,0.24354711]
[1769360851585,0.01137488,87913.0,87898.0,0.24354711]
[1769360851816,0.01137475,87914.0,87898.0,0.24354711]
[1769360852021,0.01137488,87913.0,87898.0,0.24354711]
[1769360852228,0.01137436,87917.0,87903.0,1.05343074]
[1769360852519,0.01137449,87916.0,87904.0,0.24354711]
[1769360852699,0.01137462,87915.0,87904.0,0.24354711]
[1769360852905,0.01137436,87917.0,87904.0,0.24354711]
[1769360853340,0.0113741,87919.0,87904.0,1.11711628]
[1769360853566,0.01137423,87918.0,87905.0,0.23406975]
[1769360853776,0.01137449,87916.0,87905.0,0.23406975]
[1769360854491,0.0113741,87919.0,87905.0,0.23406975]
[1769360854729,0.0113741,87919.0,87897.0,0.17519273]
[1769360854730,0.01137397,87920.0,87907.0,0.23406975]
[1769360854906,0.01137371,87922.0,87910.0,1.11711628]
[1769360855144,0.01137371,87922.0,87911.0,0.23406975]
[1769360855927,0.01137384,87921.0,87911.0,0.23406975]
[1769360856440,0.01137384,87921.0,87912.0,0.17476]
[1769360857799,0.13646366,87918.0,87897.0,0.00047273]
[1769360858015,0.01137656,87900.0,87897.0,0.00047273]
[1769360858208,0.01137682,87898.0,87894.0,0.17476]
[1769360858410,0.01137721,87895.0,87886.0,0.0002]
[1769360858563,0.01137734,87894.0,87886.0,0.0002]
[1769360858764,0.01137721,87895.0,87886.0,0.0002]
[1769360858962,0.01137772,87891.0,87886.0,0.0002]
[1769360859169,0.01137785,87890.0,87886.0,0.0002]
[1769360859368,0.01137798,87889.0,87886.0,0.0002]
[1769360859571,0.01137798,87889.0,87879.0,0.0001]
[1769360859572,0.01137889,87882.0,87879.0,0.0001]
[1769360859777,0.01137811,87888.0,87879.0,0.0001]
[1769360859984,0.06826816,87889.0,87879.0,0.0001]
[1769360859985,0.01137798,87889.0,87879.0,0.0001]
[1769360860160,0.01137747,87893.0,87880.0,0.23406975]
[1769360860364,0.01137747,87893.0,87879.0,0.0001]
[1769360860365,0.01137811,87888.0,87879.0,0.0001]
[1769360860567,0.01137889,87882.0,87879.0,0.0001]
[1769360860778,0.01137889,87882.0,87865.0,0.04552]
[1769360860779,0.24187827,87875.0,87850.0,0.23406975]
[1769360861002,0.01137902,87881.0,87851.0,0.23623109]
[1769360861189,0.13646366,87900.0,87863.0,0.23406975]
[1769360861396,0.13646366,87900.0,87851.0,0.23406975]
[1769360861397,0.01138005,87873.0,87851.0,0.23406975]
[1769360861737,0.01138005,87873.0,87854.0,1.11711628]
[1769360861876,0.01138018,87872.0,87855.0,0.23406975]
[1769360862075,0.01137902,87881.0,87862.0,0.23406975]
[1769360862292,0.29688547,87890.0,87864.0,0.23406975]
[1769360862293,0.01137954,87877.0,87864.0,0.23406975]
[1769360862495,0.05689591,87880.0,87864.0,0.23406975]
[1769360862703,0.01137902,87881.0,87865.0,1.35118603]
[1769360862902,0.01137928,87879.0,87865.0,0.23406975]
[1769360863258,0.01137928,87879.0,87848.0,0.1748]
[1769360863259,0.24187827,87878.0,87848.0,0.1748]
[1769360863484,0.24187827,87878.0,87844.0,0.000387]
[1769360863485,0.01138096,87866.0,87849.0,0.23406975]
[1769360863713,0.01138044,87870.0,87852.0,0.23406975]
[1769360863962,0.01138044,87870.0,87853.0,0.23406975]
[1769360864184,0.01138057,87869.0,87854.0,0.23406975]
[1769360864407,0.24187827,87873.0,87856.0,0.23406975]
[1769360864636,0.01137889,87882.0,87857.0,1.11711628]
[1769360864861,0.24187827,87880.0,87859.0,0.23406975]
[1769360865268,0.13646366,87886.0,87863.0,0.23406975]
[1769360865489,0.13646366,87886.0,87866.0,1.11711628]
[1769360865707,0.13646366,87886.0,87867.0,1.35118603]
[1769360865922,0.05872751,87885.0,87867.0,1.35118603]
[1769360866373,0.41667827,87887.0,87860.0,0.01138174]
[1769360866374,0.24187827,87897.0,87870.0,0.23406975]
[1769360866591,0.01137721,87895.0,87874.0,0.23406975]
[1769360866814,0.18198366,87898.0,87875.0,1.11711628]
[1769360867017,0.04552,87898.0,87879.0,1.11711628]
[1769360867235,0.04552,87898.0,87880.0,0.23406975]
[1769360867447,0.04552,87898.0,87880.0,1.35118603]
[1769360867660,0.04552,87898.0,87880.0,1.11711628]
[1769360867872,0.04552,87898.0,87870.0,0.01138044]
[1769360867873,0.04552,87898.0,87883.0,0.23406975]
[1769360868109,0.03696619,87897.0,87883.0,0.23406975]
[1769360868323,0.03696619,87897.0,87869.0,1.11711628]
[1769360868534,0.04552,87898.0,87873.0,1.11711628]
[1769360868744,0.04552,87898.0,87869.0,0.01138057]
[1769360868745,0.04552,87898.0,87876.0,0.23406975]
[1769360868960,0.04552,87898.0,87878.0,0.23406975]
[1769360869209,0.04599206,87898.0,87879.0,0.23406975]
[1769360869430,0.00047206,87898.0,87883.0,0.23406975]
[1769360869664,0.00047206,87898.0,87870.0,0.37155341]
[1769360869665,0.00047206,87898.0,87885.0,0.23406975]
[1769360870364,0.00047206,87898.0,87870.0,0.01138044]
[1769360870365,0.00047206,87898.0,87888.0,0.23406975]
[1769360870572,0.01,87888.0,87868.0,0.0113807]
[1769360870787,0.01,87888.0,87872.0,0.23406975]
[1769360871003,0.06504197,87898.0,87875.0,1.11711628]
[1769360871253,0.06504197,87898.0,87878.0,0.23406975]
[1769360871453,0.06504197,87898.0,87870.0,0.01138044]
[1769360871454,0.00047206,87898.0,87882.0,0.23406975]
[1769360871654,0.00047206,87898.0,87884.0,0.23406975]
[1769360872230,0.06456991,87895.0,87870.0,0.17484]
[1769360872436,0.06456991,87895.0,87874.0,1.11711628]
[1769360872666,0.06456991,87895.0,87876.0,1.11711628]
[1769360872868,0.06456991,87895.0,87879.0,0.23406975]
[1769360873706,0.01184888,87898.0,87850.0,0.37155341]
[1769360873707,0.00047206,87898.0,87850.0,0.37155341]
[1769360873920,0.06456991,87886.0,87861.0,1.11711628]
[1769360874133,0.30644818,87885.0,87863.0,0.23406975]
[1769360874345,0.30644818,87885.0,87866.0,1.11711628]
[1769360874559,0.30644818,87885.0,87868.0,0.23406975]
[1769360874987,0.24187827,87885.0,87869.0,1.11711628]
[1769360875194,0.01137721,87895.0,87871.0,1.11711628]
[1769360875402,0.07594712,87895.0,87874.0,0.23406975]
[1769360875639,0.06456991,87895.0,87876.0,0.23406975]
[1769360875880,0.13646366,87896.0,87862.0,0.23406975]
[1769360875881,0.06456991,87884.0,87862.0,0.23406975]
[1769360876042,0.06456991,87882.0,87864.0,0.23406975]
[1769360876459,0.06456991,87882.0,87864.0,1.35118603]
[1769360877572,0.06456991,87882.0,87865.0,0.23406975]
[1769360877953,0.0511101,87882.0,87865.0,1.35118603]
[1769360878129,0.0511101,87882.0,87866.0,0.23406975]
[1769360880037,0.05689723,87878.0,87852.0,0.06206035]
[1769360880235,0.01138018,87872.0,87847.0,1.11711628]
[1769360880473,0.01138018,87872.0,87850.0,1.11711628]
[1769360880650,0.25325807,87875.0,87853.0,0.23406975]
[1769360880859,0.01138096,87866.0,87855.0,0.23406975]
[1769360881061,1.07244301,87865.0,87845.0,0.23406975]
[1769360881256,1.06106192,87865.0,87848.0,1.11711628]
[1769360881503,0.01138122,87864.0,87849.0,0.23406975]
[1769360881695,1.06106192,87865.0,87849.0,0.23406975]
[1769360881898,1.06106192,87875.0,87850.0,1.11711628]
[1769360882119,1.06106192,87875.0,87840.0,0.38293774]
[1769360882120,0.113417,87874.0,87853.0,1.11711628]
[1769360882323,0.113417,87873.0,87856.0,0.23406975]
[1769360882500,1.07244172,87875.0,87856.0,1.11711628]
[1769360882697,0.01138005,87873.0,87857.0,0.23406975]
[1769360882896,0.01137993,87874.0,87858.0,1.11711628]
[1769360883098,0.01137928,87879.0,87859.0,0.25839757]
[1769360883297,0.11339549,87878.0,87862.0,1.14222987]
[1769360883516,0.12477503,87877.0,87863.0,0.25839757]
[1769360883751,0.11339549,87876.0,87863.0,0.25839757]
[1769360883954,0.17484,87885.0,87863.0,0.25839757]
[1769360884136,0.11340324,87881.0,87866.0,1.14222987]
[1769360884480,0.11340324,87881.0,87867.0,0.25839757]
[1769360884778,0.01137915,87880.0,87867.0,0.25839757]
[1769360884982,0.11340324,87879.0,87867.0,0.25839757]
[1769360885236,0.25951613,87888.0,87869.0,0.25839757]
[1769360885410,0.25951613,87888.0,87850.0,0.37155341]
[1769360885411,0.11344661,87887.0,87872.0,0.25839757]
[1769360885640,0.11344661,87887.0,87873.0,1.14222987]
[1769360885842,0.11344661,87886.0,87875.0,1.40062744]
[1769360886071,0.04552,87892.0,87876.0,0.25839757]
[1769360886276,0.11348974,87891.0,87878.0,0.25839757]
[1769360887212,0.11348974,87891.0,87855.0,0.22764721]
[1769360887213,0.1139618,87891.0,87882.0,0.25839757]
[1769360887430,0.00047206,87891.0,87882.0,0.25839757]
[1769360888169,0.00047206,87891.0,87870.0,0.01138044]
[1769360888170,0.14729111,87906.0,87886.0,1.14222987]
[1769360888331,1.09243155,87902.0,87887.0,0.25839757]
[1769360888503,0.12494428,87905.0,87887.0,1.40062744]
[1769360888504,0.11356837,87901.0,87887.0,1.40062744]
[1769360888703,0.11356837,87900.0,87888.0,0.25839757]
[1769360888898,0.11356837,87899.0,87888.0,0.25839757]
[1769360889124,0.11356837,87898.0,87888.0,0.25839757]
[1769360889346,1.19421922,87907.0,87886.0,0.00014174]
[1769360889347,0.04552,87910.0,87891.0,1.14222987]
[1769360889501,0.04552,87910.0,87894.0,0.25839757]
[1769360889704,0.04552,87910.0,87898.0,0.25839757]
[1769360891191,0.01137578,87906.0,87888.0,0.25839757]
[1769360891341,0.01137565,87907.0,87888.0,0.25839757]
[1769360891524,0.01137565,87907.0,87888.0,1.40062744]
[1769360891866,0.01137565,87907.0,87889.0,0.25839757]
[1769360892231,0.01137578,87906.0,87889.0,0.25839757]
[1769360892821,0.01137604,87904.0,87889.0,0.25839757]
[1769360893030,0.01137604,87904.0,87886.0,0.00014174]
[1769360893230,0.25951613,87900.0,87886.0,0.00014174]
[1769360894974,0.01137669,87899.0,87886.0,0.00014174]
[1769360895173,0.27089269,87900.0,87886.0,0.00014174]
[1769360895380,0.25951613,87900.0,87886.0,0.00014174]
[1769360895778,0.01137734,87894.0,87886.0,0.00014174]
[1769360895977,0.01137695,87897.0,87886.0,0.00014174]
[1769360896147,0.01137682,87898.0,87886.0,0.00014174]
[1769360896347,0.01137695,87897.0,87886.0,0.00014174]
[1769360896559,0.01137682,87898.0,87886.0,0.00014174]
[1769360896925,0.25569883,87899.0,87886.0,0.00014174]
[1769360897128,0.26707552,87899.0,87886.0,0.00014174]
[1769360897335,0.01137682,87898.0,87886.0,0.00014174]
[1769360897483,0.01137695,87897.0,87886.0,0.00014174]
[1769360897660,0.01137682,87898.0,87886.0,0.00014174]
[1769360897866,0.01137682,87898.0,87881.0,0.25839757]
[1769360898069,0.01137708,87896.0,87881.0,0.25886963]
[1769360898269,0.01137734,87894.0,87881.0,0.25886963]
[1769360898492,0.01137708,87896.0,87881.0,0.25886963]
[1769360898714,0.01137721,87895.0,87881.0,0.25886963]
[1769360899508,0.01137759,87892.0,87881.0,0.25886963]
[1769360899706,0.06826734,87890.0,87881.0,0.25886963]
[1769360899917,0.01137785,87890.0,87881.0,0.25886963]
[1769360900092,0.01137798,87889.0,87881.0,0.25886963]
[1769360900295,0.01137785,87890.0,87881.0,0.25886963]
[1769360900710,0.01137785,87890.0,87881.0,0.00047206]
[1769360901465,0.01137747,87893.0,87881.0,0.00047206]
[1769360901649,0.01137708,87896.0,87881.0,0.00047206]
[1769360901825,0.01137695,87897.0,87881.0,1.41696153]
[1769360902347,0.25569883,87899.0,87881.0,1.41696153]
[1769360902580,0.26707552,87899.0,87881.0,1.15370245]
[1769360902826,0.01137695,87897.0,87882.0,0.26325908]
[1769360903421,0.25569883,87899.0,87882.0,0.26325908]
[1769360903623,0.01137669,87899.0,87883.0,0.26325908]
[1769360903834,0.01137591,87905.0,87886.0,1.15323039]
[1769360904164,0.01137617,87903.0,87888.0,1.15323039]
[1769360904335,0.01137604,87904.0,87889.0,0.26325908]
[1769360904677,0.04552,87910.0,87891.0,0.26325908]
[1769360904882,0.01137565,87907.0,87895.0,0.26325908]
[1769360905134,0.06825488,87906.0,87895.0,0.26325908]
[1769360905312,0.01137591,87905.0,87895.0,0.26325908]
[1769360905513,0.01137591,87905.0,87891.0,1.15323039]
[1769360906118,0.01137604,87904.0,87891.0,1.15323039]
[1769360906764,0.01137591,87905.0,87891.0,1.15323039]
[1769360906966,0.01137578,87906.0,87893.0,1.15323039]
[1769360907116,0.01137578,87906.0,87895.0,0.26325908]
[1769360907313,0.01137565,87907.0,87895.0,0.26325908]
[1769360907517,0.01137759,87892.0,87882.0,0.26325908]
[1769360907751,0.01137747,87893.0,87882.0,0.26325908]
[1769360907987,0.01,87895.0,87882.0,0.26325908]
[1769360908202,0.25569883,87900.0,87882.0,0.26325908]
[1769360908203,0.09041202,87931.0,87895.0,0.26325908]
[1769360908372,0.11371365,87944.0,87913.0,0.26325908]
[1769360908540,0.11346539,87943.0,87921.0,0.26325908]
[1769360908743,0.22036,87942.0,87925.0,0.26325908]
[1769360909165,0.22036,87942.0,87913.0,1.15323039]
[1769360909367,0.10943036,87941.0,87916.0,0.26325908]
[1769360909603,0.109572,87941.0,87917.0,0.26325908]
[1769360910251,0.109572,87941.0,87913.0,0.06124832]
[1769360910252,0.34547908,87940.0,87918.0,1.15323039]
[1769360910453,0.17484,87939.0,87919.0,0.26325908]
[1769360910693,0.22036,87939.0,87919.0,0.26325908]
[1769360911005,0.22032,87938.0,87919.0,0.26325908]
[1769360911644,0.23169164,87938.0,87919.0,0.26325908]
[1769360911849,0.13680672,87939.0,87919.0,0.26325908]
[1769360911996,0.22032,87937.0,87919.0,0.26325908]
[1769360915207,0.22032,87936.0,87923.0,0.27360803]
[1769360915415,0.000387,87949.0,87938.0,0.27360803]
[1769360915618,0.22734443,87973.0,87936.0,0.01]
[1769360915619,1.17171724,87985.0,87954.0,0.05684787]
[1769360915825,1.17171724,87985.0,87948.0,0.22740634]
[1769360915826,0.04552,87971.0,87966.0,1.15203458]
[1769360916039,0.01449618,87975.0,87967.0,0.27360803]
[1769360916226,0.0004,87986.0,87961.0,0.01136867]
[1769360916227,0.01135845,87978.0,87971.0,0.27360803]
[1769360916428,0.01135845,87978.0,87971.0,0.27374983]
[1769360916643,0.0004,87986.0,87974.0,1.15203458]
[1769360916862,0.04552,87980.0,87975.0,0.27360803]
[1769360917069,0.01177729,87980.0,87975.0,0.27360803]
[1769360917270,0.04552,87982.0,87975.0,0.27360803]
[1769360917439,0.04552,87982.0,87977.0,0.27360803]
[1769360917790,0.0004,87986.0,87971.0,0.0001418]
[1769360917791,0.04552,87983.0,87976.0,0.27360803]
[1769360918739,0.0004,87986.0,87976.0,0.27360803]
[1769360919351,0.0004,87986.0,87971.0,0.0001418]
[1769360919352,1.05332682,87985.0,87971.0,0.0001418]
[1769360919629,0.0004,87986.0,87971.0,0.0001418]
[1769360919630,0.11160278,87984.0,87971.0,0.0001418]
[1769360919853,0.0004,87986.0,87965.0,0.3349576]
[1769360919854,0.10242942,87985.0,87965.0,0.3349576]
[1769360920073,0.10242942,87982.0,87965.0,0.06134957]
[1769360920291,0.10242942,87976.0,87949.0,1.15203458]
[1769360920506,0.10242942,87976.0,87950.0,0.27360803]
[1769360921049,0.13646366,87976.0,87952.0,0.27360803]
[1769360921282,0.09541518,87975.0,87952.0,0.27360803]
[1769360926749,0.09541518,87975.0,87952.0,1.15203458]
[1769360926970,0.04552,87978.0,87963.0,1.15203458]
[1769360927178,0.04552,87978.0,87966.0,1.15203458]
[1769360927383,0.00047265,87985.0,87967.0,0.27360803]
[1769360927707,0.04552,87980.0,87967.0,0.27360803]
[1769360928134,0.00047265,87985.0,87967.0,0.27360803]
[1769360928389,0.04552,87980.0,87967.0,0.27360803]
[1769360930174,0.00047265,87985.0,87968.0,1.15203458]
[1769360930413,0.00047265,87985.0,87956.0,0.05684642]
[1769360930414,0.04548,87984.0,87970.0,1.15203458]
[1769360930638,0.04548,87984.0,87960.0,0.37055982]
[1769360930639,0.00047265,87985.0,87975.0,0.27360803]
[1769360932408,0.14782652,88006.0,87978.0,1.15203458]
[1769360932607,0.14782652,88006.0,87964.0,0.06207706]
[1769360932608,0.00045088,87996.0,87981.0,0.27360803]
[1769360933706,0.02181639,88004.0,87981.0,0.27360803]
[1769360933909,0.01136376,87999.0,87981.0,0.27374971]
[1769360934124,0.05681627,88003.0,87981.0,0.27374971]
[1769360934359,0.27273371,88008.0,87981.0,0.27374971]
[1769360934360,0.22719017,88032.0,87985.0,0.01136557]
[1769360934560,1.05332682,88020.0,87991.0,1.15203458]
[1769360934763,0.01136053,88024.0,87997.0,1.15203458]
[1769360935050,0.01136053,88024.0,88000.0,0.27360803]
[1769360935343,0.04548,88030.0,88006.0,0.27360803]
[1769360935506,0.17468,88033.0,88009.0,1.15203458]
[1769360935507,0.0113595,88032.0,88009.0,1.15203458]
[1769360935657,0.01135989,88029.0,88010.0,0.27360803]
[1769360936079,0.01136002,88028.0,88010.0,0.27360803]
[1769360936308,0.01136015,88027.0,88010.0,0.27360803]
[1769360936543,0.01136079,88022.0,88010.0,0.27360803]
[1769360936895,0.01136053,88024.0,88010.0,0.27360803]
[1769360937131,0.01136079,88022.0,88010.0,0.27360803]
[1769360937567,0.01136092,88021.0,88010.0,0.27360803]
[1769360938165,0.01136105,88020.0,88010.0,0.27360803]
[1769360938371,0.01136092,88021.0,88010.0,0.27360803]
[1769360938608,1.05332682,88015.0,87997.0,0.06118914]
[1769360938738,0.01,88010.0,87998.0,0.27360803]
[1769360938936,0.02136234,88010.0,87998.0,0.27374971]
[1769360939163,0.01136247,88009.0,87998.0,0.27374971]
[1769360939325,0.0113626,88008.0,87998.0,0.27374971]
[1769360939528,0.45429745,88049.0,87998.0,0.27374971]
[1769360939803,0.01135989,88029.0,88002.0,0.27360803]
[1769360940011,0.01135989,88029.0,88005.0,1.15203458]
[1769360940212,1.05332682,88032.0,88009.0,1.15203458]
[1769360940417,1.05332682,88032.0,88002.0,0.17464]
[1769360940418,0.01135989,88029.0,88010.0,0.27360803]
[1769360940543,0.01136002,88028.0,88010.0,0.27360803]
[1769360941195,1.05332682,88018.0,88002.0,0.17464]
[1769360941353,1.05332682,88015.0,88002.0,0.17464]
[1769360941554,0.01136182,88014.0,88002.0,0.17464]
[1769360941754,0.05680991,88013.0,88002.0,0.17464]
[1769360941967,0.01,88002.0,87988.0,0.27360803]
[1769360942177,0.01014166,88002.0,87988.0,0.27360803]
[1769360942542,0.00014166,88002.0,87988.0,0.27360803]
[1769360942836,0.0003916,88019.0,87991.0,0.27360803]
[1769360943017,0.0003916,88019.0,87994.0,1.15514417]
[1769360943176,0.0003916,88019.0,87996.0,1.15514417]
[1769360943392,0.06816261,88025.0,87991.0,0.00014166]
[1769360943393,0.01135731,88049.0,88014.0,0.01136182]
[1769360943595,0.01135705,88051.0,88013.0,0.01136195]
[1769360943596,0.02125059,88051.0,88018.0,0.26002535]
[1769360943793,0.06814466,88048.0,88022.0,0.26002535]
[1769360944015,0.06814466,88048.0,88025.0,1.15514417]
[1769360944218,0.01135795,88044.0,88026.0,0.26002535]
[1769360944416,0.01978195,88052.0,88026.0,0.26002535]
[1769360944654,0.01135898,88036.0,88016.0,0.26002535]
[1769360944956,0.01,88026.0,88016.0,0.26002535]
[1769360946564,0.01135911,88035.0,88016.0,0.26002535]
[1769360946766,0.00670443,88036.0,88016.0,0.26002535]
[1769360947284,0.01135911,88035.0,88016.0,0.26002535]
[1769360947828,0.01135898,88036.0,88016.0,0.26002535]
[1769360948002,0.01135898,88036.0,88016.0,0.26016706]
[1769360949005,0.01135911,88035.0,88016.0,0.26016706]
[1769360949162,0.01135924,88034.0,88016.0,0.26016706]
[1769360949640,0.0113595,88032.0,88016.0,0.26016706]
[1769360950482,0.0681571,88032.0,88016.0,0.26016706]
[1769360950686,0.01135963,88031.0,88016.0,0.26016706]
[1769360951145,0.0113595,88032.0,88016.0,0.26016706]
[1769360951505,0.01135886,88037.0,88016.0,0.26016706]
[1769360951720,0.01135924,88034.0,88016.0,0.26016706]
[1769360951916,0.05679504,88036.0,88016.0,0.26016706]
[1769360952122,0.06815333,88037.0,88016.0,0.26016706]
[1769360952291,0.01135911,88035.0,88016.0,0.26016706]
[1769360952491,0.06815333,88037.0,88016.0,0.26016706]
[1769360952492,0.01135898,88036.0,88016.0,0.26016706]
[1769360952691,0.01135924,88034.0,88016.0,0.26016706]
[1769360952896,0.0113595,88032.0,88016.0,0.26016706]
[1769360953154,0.01135963,88031.0,88016.0,0.26016706]
[1769360953371,0.01136002,88028.0,88016.0,0.00014171]
[1769360953792,0.06816069,88028.0,88016.0,0.00014171]
[1769360953995,0.0113604,88025.0,88013.0,0.04548]
[1769360954360,0.01136027,88026.0,88013.0,0.04548]
[1769360955011,0.01136015,88027.0,88013.0,0.04548]
[1769360955264,0.0113604,88025.0,88013.0,0.04548]
[1769360955505,0.01136027,88026.0,88013.0,0.04548]
[1769360955736,0.01136015,88027.0,88013.0,0.04548]
[1769360956030,0.01136002,88028.0,88013.0,0.04548]
[1769360956180,0.01136015,88027.0,88013.0,0.04548]
[1769360956807,0.01136015,88027.0,88013.0,0.04532164]